Workbook

Sheet مبيعات البنزين
F1: TextBox3 | I1: TextBox5 | L1: TextBox7 | O1: TextBox9 | T1: TextBox 12 | W1: TextBox 9 | Z1: TextBox 10 | AC1: TextBox 11 | AH1: TextBox 13 | AJ1: TextBox 14
A2: م | B2: الوردية | C2: السنة | D2: الشهر | E2: التاريخ | F2: سابقة (3) 92 | G2: حالية (3) 92 | H2: استهلاك تانك 3 | I2: سابقة (4) 92 | J2: حالية (4) 92 | K2: استهلاك تانك 4 | L2: سابقة (7) 92 | M2: حالية (7) 92 | N2: استهلاك تانك 7 | O2: سابقة (8) 92 | P2: حالية (8) 92 | Q2: استهلاك تانك 8 | R2: معيار 92 | S2: اجمالى استهلاك 92 | T2: سعر لتر 92 | U2: قيمة مبيعات 92 | V2: سابقة (1) 95 | W2: حالية (1) 95 | X2: استهلاك تانك 1 | Y2: سابقة (2) 95 | Z2: حالية (2) 95 | AA2: استهلاك تانك 2 | AB2: سابقة (5) 95 | AC2: حالية (5) 95 | AD2: استهلاك تانك 5 | AE2: سابقة (6) 95 | AF2: حالية (6) 95 | AG2: استهلاك تانك 6 | AH2: معيار 95 | AI2: اجمالى استهلاك 95 | AJ2: سعر لتر 95 | AK2: قيمة مبيعات 95
A3: 1 | B3: a | C3: =Table1[[#This Row],[التاريخ]] -> 2019-01-02 | D3: =Table1[[#This Row],[التاريخ]] -> 2019-01-02 | E3: 2019-01-02 | F3: =IF(ISNUMBER(G2)*1=0,0,G2) -> 0 | G3: 1678071 | H3: =IF(G3="","0",G3-F3) -> 1678071 | I3: =IF(ISNUMBER(J2)*1=0,0,J2) -> 0 | J3: 3886371 | K3: =IF(G3="",0,J3-I3) -> 3886371 | L3: =IF(ISNUMBER(M2)*1=0,0,M2) -> 0 | M3: 5701909 | N3: =IF(M3="",0,M3-L3) -> 5701909 | O3: =IF(ISNUMBER(P2)*1=0,0,P2) -> 0 | P3: 5694238 | Q3: 5694238 | R3: 80 | S3: =SUM(H3,K3,N3,Q3)-R3 -> 16960509 | T3: 6.75 | U3: =Table1[سعر لتر 92]*Table1[[ اجمالى استهلاك 92]] -> 114483435.8 | V3: =IF(ISNUMBER(W2)*1=0,0,W2) -> 0 | W3: 229340 | X3: =IF(W3="",0,W3-V3) -> 229340 | Y3: =IF(ISNUMBER(Z2)*1=0,0,Z2) -> 0 | Z3: 287106 | AA3: =IF(Z3="",0,Z3-Y3) -> 287106 | AB3: =IF(ISNUMBER(AC2)*1=0,0,AC2) -> 0 | AC3: 262622 | AD3: =IF(AC3="",0,AC3-AB3) -> 262622 | AE3: =IF(ISNUMBER(AF2)*1=0,0,AF2) -> 0 | AF3: 407351 | AG3: =IF(AF3="",0,AF3-AE3) -> 407351 | AH3: 80 | AI3: =SUM(X3,AA3,AD3,AG3)-AH3 -> 1186339 | AJ3: 7.75 | AK3: =Table1[سعر لتر 95]*Table1[اجمالى استهلاك 95] -> 9194127.25
A4: 2 | B4: b | C4: =Table1[[#This Row],[التاريخ]] -> 2019-01-02 | D4: =Table1[[#This Row],[التاريخ]] -> 2019-01-02 | E4: 2019-01-02 | F4: 1678071 | G4: 120234567 | H4: 118556496 | I4: 3886371 | J4: 120234567 | K4: 116348196 | L4: 5701909 | M4: 120234567 | N4: 114532658 | O4: 5694238 | P4: 120234567 | Q4: =IF(P4="",0,P4-O4) -> 114540329 | R4: 22222 | S4: =SUM(H4,K4,N4,Q4)-R4 -> 463955457 | T4: 2 | U4: =Table1[سعر لتر 92]*Table1[[ اجمالى استهلاك 92]] -> 927910914 | V4: 229340 | W4: 120234567 | X4: =IF(W4="",0,W4-V4) -> 120005227 | Y4: 287106 | Z4: 120234567 | AA4: =IF(Z4="",0,Z4-Y4) -> 119947461 | AB4: =IF(ISNUMBER(AC3)*1=0,0,AC3) -> 262622 | AC4: 120234567 | AD4: =IF(AC4="",0,AC4-AB4) -> 119971945 | AE4: 407351 | AF4: 120234567 | AG4: =IF(AF4="",0,AF4-AE4) -> 119827216 | AH4: 22222 | AI4: =SUM(X4,AA4,AD4,AG4)-AH4 -> 479729627 | AJ4: 2 | AK4: =Table1[سعر لتر 95]*Table1[اجمالى استهلاك 95] -> 959459254
